bitfinex/quotes_ETHUSD_20250807
["timestamp","ask_amount","ask_price","bid_price","bid_amount"]
[1754582615996,0.4557,3840.1,3839.7,2.73471328]
[1754582616166,0.4557,3840.1,3839.8,2.60427897]
[1754582616483,0.4557,3840.1,3839.7,2.60434738]
[1754582616846,0.4557,3840.0,3839.6,0.1304]
[1754582617052,4.4537,3839.9,3839.6,0.1304]
[1754582617259,3.997,3839.8,3839.5,2.60448052]
[1754582617465,3.997,3839.8,3839.5,2.60449864]
[1754582617665,4.4527,3839.8,3839.5,2.60449864]
[1754582618166,4.05777323,3839.7,3839.0,2.60483413]
[1754582618367,0.1304,3839.2,3838.7,0.1304]
[1754582618603,3.997,3839.1,3839.0,2.60484501]
[1754582618766,1.10826096,3839.6,3839.3,2.60459268]
[1754582619098,3.997,3839.5,3839.3,2.60459268]
[1754582619456,0.4557,3839.4,3839.1,2.60475781]
[1754582619657,0.4557,3839.3,3839.0,2.60484246]
[1754582619872,0.46774,3839.4,3838.9,0.1304]
[1754582619873,4.4537,3839.2,3838.9,0.1304]
[1754582620088,4.4537,3839.2,3839.0,2.60479394]
[1754582620269,4.4537,3839.2,3839.1,2.60477716]
[1754582620880,3.998,3839.2,3839.1,2.60477716]
[1754582621958,3.998,3839.2,3839.0,2.60482023]
[1754582622593,3.998,3839.2,3838.8,2.73537528]
[1754582622594,4.55685694,3839.2,3839.1,2.60477716]
[1754582622795,4.55685694,3839.2,3838.9,2.60488903]
[1754582622796,4.55685694,3839.2,3839.0,2.60482273]
[1754582623105,4.55685694,3839.2,3839.1,2.60477716]
[1754582623304,0.1304,3839.3,3839.2,2.60470931]
[1754582623613,3.995,3839.3,3839.2,3.7287564]
[1754582623906,3.995,3839.3,3839.2,3.70270931]
[1754582625070,3.996,3839.6,3839.2,1.098]
[1754582625276,2.01302335,3839.5,3838.9,2.60491286]
[1754582625564,0.5861,3839.4,3839.1,2.60473431]
[1754582625784,3.996,3839.3,3839.1,2.60473431]
[1754582625984,0.4557,3839.2,3839.1,2.60473431]
[1754582626488,3.996,3839.3,3839.2,2.60470931]
[1754582627381,3.995,3839.3,3839.2,2.60470931]
[1754582627614,3.995,3839.3,3839.2,2.73510931]
[1754582629210,3.995,3839.3,3839.2,3.70270931]
[1754582630089,3.995,3839.3,3839.2,3.20270931]
[1754582630523,0.002,3839.5,3839.2,3.20270931]
[1754582630524,0.002,3839.5,3839.4,2.60457363]
[1754582630726,4.55802753,3839.5,3839.4,2.60457363]
[1754582631226,0.002,3839.5,3839.4,4.41661964]
[1754582631424,0.002,3839.5,3839.4,4.54701964]
[1754582631630,0.002,3839.5,3839.4,3.57941964]
[1754582631798,0.002,3839.5,3839.4,4.54701964]
[1754582633226,0.002,3839.5,3839.4,4.04701964]
[1754582634632,0.5638566,3839.5,3839.4,4.04701964]
[1754582634799,0.5638566,3839.5,3839.4,3.57941964]
[1754582636222,0.5638566,3839.5,3839.4,2.73497363]
[1754582637131,0.5638566,3839.5,3839.4,3.20257363]
[1754582637434,0.5638566,3839.5,3839.4,3.70257363]
[1754582637732,0.5638566,3839.5,3839.4,3.20257363]
[1754582638424,0.5638566,3839.5,3839.4,2.73497363]
[1754582638620,0.5638566,3839.5,3839.4,2.60457363]
[1754582638929,1.0395566,3839.5,3839.4,2.60457363]
[1754582639103,0.5638566,3839.5,3839.4,2.60457363]
[1754582639832,1.0395566,3839.5,3839.4,2.60457363]
[1754582640138,1.4687566,3839.5,3839.4,2.60457363]
[1754582640738,1.0395566,3839.5,3839.4,2.60457363]
[1754582640925,4.5558566,3839.5,3839.4,2.60457363]
[1754582641130,5.0315566,3839.5,3839.4,2.73497363]
[1754582641330,5.4607566,3839.5,3839.4,2.73497363]
[1754582641725,5.4607566,3839.5,3839.4,2.60457363]
[1754582642134,5.0315566,3839.5,3839.4,2.60457363]
[1754582643444,4.5558566,3839.5,3839.4,2.60457363]
[1754582644168,0.5638566,3839.5,3839.4,2.73497363]
[1754582644313,0.002,3839.5,3839.4,10.85029342]
[1754582644509,0.002,3839.5,3839.4,10.82424769]
[1754582645842,0.002,3840.1,3840.0,2.60416666]
[1754582646010,0.56366977,3840.1,3840.0,2.60416666]
[1754582646338,0.56366977,3840.1,3840.0,3.85544252]
[1754582646539,0.56366977,3840.1,3840.0,3.38804252]
[1754582647826,0.002,3840.1,3840.0,3.38804252]
[1754582648019,0.56344478,3840.1,3840.0,2.60416666]
[1754582648428,0.002,3840.1,3840.0,2.60416666]
[1754582648634,1.46827198,3840.1,3840.0,2.60416666]
[1754582649055,1.46827198,3840.1,3839.6,2.60441989]
[1754582649274,5.45727198,3840.0,3839.6,2.60441989]
[1754582649438,0.56137198,3839.9,3839.6,2.60441989]
[1754582649644,0.99057198,3839.8,3839.7,2.60437013]
[1754582649845,0.56137198,3839.8,3839.7,2.60437013]
[1754582650542,1.46627198,3839.8,3839.7,2.60437013]
[1754582650739,1.46627198,3839.8,3839.6,2.60439009]
[1754582650972,1.46637539,3839.7,3839.4,2.60452598]
[1754582651174,0.56147539,3839.6,3839.5,18.596185]
[1754582651343,0.002,3840.1,3840.0,2.60416666]
[1754582651667,0.56346271,3840.1,3840.0,2.63020832]
[1754582651853,0.002,3840.1,3840.0,3.09760832]
[1754582652176,0.002,3840.1,3840.0,3.56290832]
[1754582652376,0.002,3840.1,3840.0,4.57922391]
[1754582652873,0.002,3840.1,3840.0,4.55318225]
[1754582653076,0.002,3840.1,3840.0,4.08788225]
[1754582654170,0.002,3840.1,3840.0,3.62048225]
[1754582654339,0.002,3840.1,3840.0,3.77692391]
[1754582654775,0.002,3840.1,3840.0,3.75088225]
[1754582655339,0.002,3840.1,3840.0,2.73456666]
[1754582655981,0.002,3840.1,3840.0,3.20196666]
[1754582656280,0.002,3840.1,3840.0,2.73456666]
[1754582656480,0.002,3840.1,3840.0,3.20196666]
[1754582657074,0.002,3840.1,3840.0,2.73456666]
[1754582657247,1.03912592,3840.1,3840.0,2.73456666]
[1754582657856,0.56342592,3840.1,3840.0,2.73456666]
[1754582658264,1.46832592,3840.1,3840.0,2.73456666]
[1754582659046,1.03912592,3840.1,3840.0,2.73456666]
[1754582659573,0.56342592,3840.1,3840.0,2.73456666]
[1754582660078,0.002,3840.1,3840.0,3.66726666]
[1754582660243,0.002,3840.3,3840.0,7.20375224]
[1754582660584,0.002,3840.3,3840.2,18.59571025]
[1754582660755,0.002,3840.5,3840.4,5.60389542]
[1754582660945,0.002,3840.5,3840.4,9.59589542]
[1754582661145,0.002,3840.5,3840.4,12.30523599]
[1754582661342,0.002,3840.5,3840.4,13.23793599]
[1754582662165,0.002,3840.5,3840.4,8.31323599]
[1754582663184,0.002,3840.5,3840.4,9.24593599]
[1754582663884,0.002,3840.5,3840.4,8.78063599]
[1754582664086,0.002,3840.5,3840.4,8.31323599]
[1754582668260,0.002,3840.5,3840.4,5.31323599]
[1754582668461,0.4719,3840.5,3840.4,2.73429542]
[1754582668664,0.002,3840.5,3840.4,2.76033437]
[1754582668861,0.002,3840.5,3840.4,3.16439542]
[1754582669367,0.002,3840.5,3840.4,3.19043437]
[1754582669560,0.002,3840.5,3840.4,5.87431365]
[1754582669893,0.002,3840.5,3840.4,5.8482747]
[1754582670084,0.002,3840.5,3840.4,6.3405747]
[1754582670487,0.002,3840.5,3840.4,5.8482747]
[1754582670863,0.002,3840.5,3840.4,9.8362747]
[1754582673804,0.002,3840.5,3840.4,9.4061747]
[1754582674366,0.002,3840.5,3840.4,9.3405747]
[1754582675176,0.002,3840.9,3840.8,5.60362424]
[1754582675501,0.002,3841.3,3841.2,5.60335311]
[1754582675802,1e-08,3841.3,3841.2,9.72175311]
[1754582675988,1e-08,3841.3,3841.2,12.22926741]
[1754582678003,1e-08,3841.3,3841.2,7.31886741]
[1754582678191,1e-08,3841.3,3841.2,5.73375311]
[1754582678908,0.91000001,3841.3,3841.2,5.73375311]
[1754582679110,0.91000001,3841.3,3841.0,2.60343942]
[1754582679408,0.91,3841.2,3841.0,0.1304]
[1754582679781,0.91,3841.1,3841.0,0.1304]
[1754582681580,0.91,3841.1,3840.4,3.0]
[1754582681803,0.4401,3841.1,3840.9,2.60353244]
[1754582682028,0.4401,3841.0,3840.8,2.73400332]
[1754582682204,0.4401,3841.0,3840.8,0.1304]
[1754582682406,1.03032635,3840.9,3840.8,2.60362424]
[1754582682711,1.47042635,3840.9,3840.7,2.6036743]
[1754582682894,0.91,3840.8,3840.7,2.6036743]
[1754582684089,0.56053696,3841.1,3841.0,2.60348425]
[1754582684287,1.00063696,3841.1,3841.0,2.60348425]
[1754582684587,1.47053696,3841.1,3841.0,2.60348425]
[1754582685595,1.47053696,3841.1,3840.9,2.60353223]
[1754582685799,0.1304,3841.2,3840.9,2.60353223]
[1754582685800,0.56053696,3841.0,3840.9,2.60353223]
[1754582686008,1.47053696,3841.0,3840.9,2.60353223]
[1754582688921,1.47053696,3841.0,3840.6,0.1304]
[1754582689223,1.47053696,3840.9,3840.8,2.60362424]
[1754582689423,0.56053696,3840.9,3840.8,2.60362424]
[1754582690010,0.56053696,3840.9,3840.8,2.73402424]
[1754582691026,0.46990001,3841.3,3841.2,2.60335311]
[1754582691329,1.2746728,3841.3,3841.2,2.60335311]
[1754582692926,0.8047728,3841.3,3841.2,2.60335311]
[1754582693347,1.03104944,3841.3,3841.2,2.60335311]
[1754582694615,1.47114944,3841.3,3841.2,2.60335311]
[1754582694813,1.03104944,3841.3,3841.2,2.60335311]
[1754582695003,0.56114944,3841.3,3841.2,2.60335311]
[1754582695516,0.56114944,3841.3,3841.2,2.73375311]
[1754582695711,0.56114944,3841.3,3841.2,4.23548513]
[1754582695911,1e-08,3841.3,3841.2,3.31308513]
[1754582696426,1e-08,3841.3,3841.2,3.74318513]
[1754582696606,1e-08,3841.3,3841.2,13.9937387]
[1754582696809,1e-08,3841.3,3841.2,14.4860387]
[1754582697530,1e-08,3841.3,3841.2,13.5636387]
[1754582697843,1e-08,3841.3,3841.2,13.9937387]
[1754582698336,1e-08,3841.3,3841.2,13.5636387]
[1754582700241,1e-08,3841.3,3841.2,17.0095387]
[1754582700406,1e-08,3841.3,3841.2,6.75898513]
[1754582700611,0.93350001,3841.3,3841.2,5.73375311]
[1754582701652,0.93350001,3841.3,3841.2,0.1304]
[1754582701949,1.49452394,3841.3,3841.2,0.1304]
[1754582702415,1.49452394,3841.3,3841.2,2.73375311]
[1754582702740,1.49452394,3841.3,3841.2,0.1304]
[1754582702942,1.49452394,3841.3,3841.0,2.60342983]
[1754582703236,0.4841,3841.2,3841.0,2.60344469]
[1754582703441,0.4841,3841.2,3840.8,2.60460716]
[1754582703442,0.9335,3841.2,3841.1,2.60342089]
[1754582703738,1.49458025,3841.2,3840.8,2.60462128]
[1754582703937,1.49458025,3841.1,3840.8,2.60459954]
[1754582704130,0.13040001,3841.3,3840.9,2.6035527]
[1754582704326,0.9335,3841.0,3840.8,2.60459766]
[1754582704576,0.9335,3840.9,3840.8,2.60459766]
[1754582705116,0.13040001,3841.3,3841.0,2.60344612]
[1754582705323,1.04522821,3841.2,3841.0,2.60348867]
[1754582705507,1.04522821,3841.1,3840.9,2.60354282]
[1754582705840,1.04522821,3841.0,3840.9,2.60354282]
[1754582706339,1.04522821,3841.0,3840.8,0.001]
[1754582706547,5.48262821,3840.9,3840.8,0.001]
[1754582706723,6.03089103,3840.9,3840.8,0.001]
[1754582707038,6.58089103,3840.9,3840.8,0.001]
[1754582707804,6.82459219,3840.9,3840.8,0.001]
[1754582708443,9.42814864,3840.9,3840.8,0.001]
[1754582709250,23.92814864,3840.9,3840.8,0.001]
[1754582711957,24.71062064,3840.9,3840.8,0.001]
[1754582712115,22.10706419,3840.9,3840.8,0.001]
[1754582712316,20.45732937,3840.9,3840.8,0.001]
[1754582712716,4.79282937,3840.9,3840.8,2.60462424]
[1754582713136,4.54912821,3840.9,3840.8,0.001]
[1754582713417,5.27672501,3840.9,3840.8,0.001]
[1754582713612,5.03322821,3840.9,3840.8,0.001]
[1754582713815,5.03322821,3840.9,3840.8,2.60462424]
[1754582714218,5.03322821,3840.9,3840.8,0.001]
[1754582714414,4.54912821,3840.9,3840.8,0.001]
[1754582714620,4.54912821,3840.9,3840.8,2.60462424]
[1754582715131,4.54912821,3840.9,3840.8,3.05052424]
[1754582715436,4.54912821,3840.9,3840.8,5.15128244]
[1754582715437,0.56112821,3840.9,3840.8,5.15128244]
[1754582715650,4.54912821,3840.9,3840.8,5.15128244]
[1754582716751,0.56112821,3840.9,3840.8,5.15128244]
[1754582716985,1e-08,3841.3,3841.2,2.60335311]
[1754582717270,4.54875731,3841.3,3841.2,12.98430668]
[1754582717453,4.54875731,3841.3,3841.2,15.07995078]
[1754582717657,0.56075731,3841.3,3841.2,15.07995078]
[1754582717982,1e-08,3841.3,3841.2,18.54375078]
[1754582720150,1e-08,3841.3,3841.2,2.73375311]
[1754582720345,0.48410001,3841.3,3841.2,2.73375311]
[1754582720673,4.47210001,3841.3,3841.2,2.73375311]
[1754582720859,4.47210001,3841.3,3841.2,0.1304]
[1754582721172,4.92150001,3841.3,3840.8,2.60462242]
[1754582721472,1.49407119,3841.2,3841.0,2.60344589]
[1754582721672,0.9335,3841.2,3841.0,2.60344589]
[1754582721973,1.49408852,3841.1,3841.0,2.60344589]
[1754582722174,1.04468852,3841.1,3841.0,2.60344589]
[1754582722343,0.4841,3841.1,3841.0,2.60344589]
[1754582722689,3.98800001,3841.3,3841.2,2.60335311]
[1754582722848,5.48207005,3841.3,3841.0,2.6034811]
[1754582723054,0.56057004,3841.2,3841.0,2.6034811]
[1754582723243,0.4494,3841.1,3841.0,2.6034811]
[1754582723440,1.494089,3841.1,3840.8,0.001]
[1754582723638,0.4494,3841.0,3840.8,0.001]
[1754582723840,3.988,3840.9,3840.8,2.60462424]
[1754582724059,4.9215,3840.9,3840.8,0.001]
[1754582724269,2.11667555,3840.9,3840.8,0.001]
[1754582724469,4.1184,3840.9,3840.8,0.001]
[1754582724669,0.69101737,3840.9,3840.8,0.001]
[1754582724869,3.988,3841.0,3840.9,2.60355645]
[1754582725178,4.54859702,3841.0,3840.9,2.60355645]
[1754582725348,4.54859702,3841.0,3840.8,2.6045975]
[1754582725559,1.04469702,3840.9,3840.8,2.6045975]
[1754582725958,1.49409702,3840.9,3840.8,0.001]
[1754582726162,1.62449702,3840.9,3840.8,0.001]
[1754582727356,2.17449702,3840.9,3840.8,0.001]
[1754582727573,5.59963934,3840.9,3840.8,0.001]
[1754582728081,2.99608289,3840.9,3840.8,0.001]
[1754582728659,3.2394759,3840.9,3840.8,0.001]
[1754582730783,1.96849003,3840.9,3840.8,0.001]
[1754582730986,1.72509702,3840.9,3840.8,0.001]
[1754582731891,4.67899702,3840.9,3840.8,0.001]
[1754582732393,5.14509702,3840.9,3840.8,0.001]
[1754582732682,4.54859702,3840.9,3840.8,2.60462424]
[1754582733183,4.54859702,3840.9,3840.8,3.2166771]
[1754582734050,0.56059702,3840.9,3840.8,3.6730771]
[1754582734381,0.56059702,3840.9,3840.8,7.28431334]
[1754582734588,1e-08,3841.3,3841.2,5.60335311]
[1754582734819,1e-08,3841.3,3841.2,6.55444407]
[1754582735022,1e-08,3841.3,3841.2,7.46564407]
[1754582737389,1e-08,3841.3,3841.2,7.01084407]
[1754582737697,1e-08,3841.3,3841.2,6.55444407]
[1754582738008,1e-08,3841.3,3841.2,5.73375311]
[1754582739184,1e-08,3841.3,3841.2,6.64495311]
[1754582739789,1e-08,3841.3,3841.2,5.73375311]
[1754582740825,0.46610001,3841.3,3841.2,0.1304]
[1754582741024,0.46610001,3841.3,3841.2,2.73375311]
[1754582742024,1e-08,3841.3,3841.2,7.17867601]
[1754582742768,1e-08,3841.3,3841.2,6.26747601]
[1754582743454,0.46610001,3841.3,3841.2,6.26747601]
[1754582743626,0.46610001,3841.3,3841.2,3.26747601]
[1754582743827,0.46610001,3841.3,3841.2,2.73375311]
[1754582744259,0.90870001,3841.3,3840.8,0.001]
[1754582744560,0.1304,3841.2,3840.8,0.001]
[1754582744754,0.55,3841.1,3840.8,0.001]
[1754582745117,0.9087,3841.0,3840.8,0.001]
[1754582745322,1.46631,3841.0,3840.8,0.001]
[1754582745522,0.9087,3840.9,3840.8,0.001]
[1754582745822,4.19265645,3840.9,3840.8,0.001]
[1754582746525,4.75364012,3840.9,3840.8,0.001]
[1754582747032,4.77331152,3840.9,3840.8,0.001]
[1754582747233,5.54707454,3840.9,3840.8,0.001]
[1754582748526,5.79044914,3840.9,3840.8,0.001]
[1754582748921,5.79045154,3840.9,3840.8,0.001]
[1754582749158,3.18686584,3840.9,3840.8,0.001]
[1754582749357,2.15008367,3840.9,3840.8,0.001]
[1754582749560,4.99698856,3840.9,3840.8,0.001]
[1754582749984,4.99698873,3840.9,3840.8,0.001]
[1754582750444,4.55438873,3840.9,3840.8,0.001]
[1754582750648,4.99698873,3840.9,3840.8,0.001]
[1754582750890,5.81279164,3840.9,3840.8,0.001]
[1754582751550,9.80079164,3840.9,3840.8,0.001]
[1754582752086,9.80072268,3840.9,3840.8,0.001]
[1754582754286,9.80014525,3840.9,3840.8,0.001]
[1754582754886,6.38030915,3840.9,3840.8,0.001]
[1754582755093,9.35737253,3840.9,3840.8,0.001]
[1754582755386,0.93391317,3840.9,3840.8,0.001]
[1754582755690,0.56040624,3840.9,3840.8,3.51582424]
[1754582755876,0.56040624,3841.1,3841.0,2.60348867]
[1754582756084,4.54840624,3841.2,3840.9,2.6035401]
[1754582756254,4.54840624,3841.2,3840.8,3.19140419]
[1754582756685,4.54840624,3841.2,3840.8,0.5878]
[1754582756987,4.54840624,3841.2,3840.8,3.19138038]
[1754582757187,4.54840624,3841.2,3840.9,2.60351357]
[1754582757578,4.54840624,3841.2,3841.0,2.60347452]
[1754582757775,4.54840624,3841.2,3840.8,0.5878]
[1754582758381,4.54840624,3841.2,3840.8,3.19138207]
[1754582758582,4.54840624,3841.2,3840.9,2.60355332]
[1754582758952,0.56040625,3841.3,3841.1,2.60342089]
[1754582759261,1e-08,3841.3,3841.2,2.60335311]
[1754582759591,1e-08,3841.3,3841.2,3.52675311]
[1754582760191,1e-08,3841.3,3841.2,2.60335311]
[1754582760367,1e-08,3841.3,3841.2,3.06915311]
[1754582760565,1e-08,3841.3,3841.2,3.7531675]
[1754582761292,1e-08,3841.3,3841.2,4.2107675]
[1754582763193,1e-08,3841.3,3841.2,3.7531675]
[1754582764394,1e-08,3841.3,3841.2,3.2873675]
[1754582764595,1e-08,3841.3,3841.2,0.68401439]
[1754582764790,1e-08,3841.3,3841.2,3.2873675]
[1754582765208,1e-08,3841.3,3841.1,0.1304]
[1754582765367,1e-08,3841.3,3841.2,2.60335311]
[1754582766478,1e-08,3841.3,3841.2,3.65715311]
[1754582767104,1e-08,3841.3,3841.2,0.1304]
[1754582767311,0.47170001,3841.3,3841.0,0.1304]
[1754582767509,0.47170001,3841.3,3841.2,2.60335311]
[1754582767709,0.47170001,3841.3,3841.1,2.60339767]
[1754582767909,0.47170001,3841.3,3841.2,2.60335311]
[1754582768211,1e-08,3841.3,3841.2,2.60335311]
[1754582769324,14.50000001,3841.3,3841.2,2.60335311]
[1754582770119,14.50000001,3841.3,3841.2,2.73375311]
[1754582770288,1e-08,3841.3,3841.2,2.73375311]
[1754582770811,1e-08,3841.3,3841.2,3.77985663]
[1754582771014,1e-08,3841.3,3841.2,4.23745663]
[1754582771215,1e-08,3841.3,3841.2,3.31405663]
[1754582771418,1e-08,3841.3,3841.2,4.23745663]
[1754582771622,1e-08,3841.3,3841.2,3.31405663]
[1754582771814,1e-08,3841.3,3841.2,0.1304]
[1754582772016,0.47170001,3841.3,3841.2,2.73375311]
[1754582772649,3.98700001,3841.3,3841.2,0.1304]
[1754582772947,7.08758118,3841.3,3840.9,2.73395645]
[1754582773113,0.9443,3841.2,3840.9,2.73395645]
[1754582773321,0.4717,3841.1,3840.9,0.1304]
[1754582773639,0.4717,3841.1,3841.0,2.60348867]
[1754582773806,0.4717,3841.1,3840.9,2.73393795]
[1754582774197,4.54738479,3841.3,3840.9,0.1304]
[1754582774398,0.4717,3841.0,3840.8,0.001]
[1754582774840,0.4726,3841.2,3840.9,2.60355645]
[1754582775435,0.4717,3841.1,3840.8,0.001]
[1754582775848,0.4717,3841.0,3840.9,2.60354985]
[1754582776803,4.45870001,3841.3,3840.8,2.60461064]
[1754582777004,0.4717,3841.2,3840.9,2.60355645]
[1754582777518,0.4717,3841.1,3840.9,2.60353557]
[1754582778340,0.4717,3841.1,3840.8,0.001]
[1754582778541,0.4717,3841.1,3840.9,2.60351149]
[1754582778706,0.4717,3841.1,3841.0,2.60348867]
[1754582779107,0.4717,3841.1,3840.8,2.60461979]
[1754582779510,0.4717,3841.1,3840.9,2.60355645]
[1754582779711,0.4717,3841.1,3840.9,2.60455645]
[1754582779949,0.4717,3841.1,3841.0,2.60348867]
[1754582780352,0.4717,3841.1,3840.9,2.60453304]
[1754582781481,8.64577968,3841.0,3840.9,0.001]
[1754582781683,8.88929253,3841.0,3840.9,0.001]
[1754582782360,9.01969253,3841.0,3840.9,0.001]
[1754582783589,23.51969253,3841.0,3840.9,0.001]
[1754582784507,19.42208107,3841.0,3840.9,0.001]
[1754582785060,22.49726974,3841.0,3840.9,0.001]
[1754582785264,22.96986974,3841.0,3840.9,0.001]
[1754582785695,19.42208107,3841.0,3840.9,0.001]
[1754582785894,19.89378107,3841.0,3840.9,0.001]
[1754582786400,25.81683646,3841.0,3840.9,0.001]
[1754582786775,25.34423646,3841.0,3840.9,0.001]
[1754582787094,19.97208107,3841.0,3840.9,0.001]
[1754582787980,20.44378107,3841.0,3840.9,0.001]
[1754582788159,19.97208107,3841.0,3840.9,0.001]
[1754582789007,20.44818107,3841.0,3840.9,0.001]
[1754582789166,19.97208107,3841.0,3840.9,0.001]
[1754582789908,19.29168107,3841.0,3840.9,0.001]
[1754582790080,15.06099101,3841.0,3840.9,3.04005645]
[1754582790275,0.56099101,3841.0,3840.9,4.13391018]
[1754582790603,1e-08,3841.3,3841.2,2.60335311]
[1754582790763,0.56108964,3841.3,3841.2,12.85874341]
[1754582790960,1e-08,3841.3,3841.2,13.76364341]
[1754582791198,1e-08,3841.3,3841.2,18.99199659]
[1754582792162,0.002,3841.7,3841.6,2.60308204]
[1754582792367,0.002,3841.7,3841.6,16.87150316]
[1754582792593,1e-08,3841.7,3841.6,20.88077234]
[1754582792894,1e-08,3841.7,3841.6,26.25023745]
[1754582793269,1e-08,3841.7,3841.6,22.26323745]
[1754582793463,1e-08,3841.7,3841.6,26.25023745]
[1754582793996,1e-08,3841.7,3841.6,22.26323745]
[1754582794320,1e-08,3841.7,3841.6,26.25023745]
[1754582794496,1e-08,3841.7,3841.6,13.27377594]
[1754582794669,1e-08,3841.7,3841.6,10.62538204]
[1754582795099,1e-08,3841.7,3841.6,6.63838204]
[1754582795541,1e-08,3841.7,3841.6,10.62438204]
[1754582795898,1e-08,3841.7,3841.6,6.63838204]
[1754582796095,1e-08,3841.7,3841.6,10.15498204]
[1754582796292,1e-08,3841.7,3841.6,11.94713691]
[1754582796903,1e-08,3841.7,3841.6,7.96113691]
[1754582797109,1e-08,3841.7,3841.6,11.47773691]
[1754582797707,1e-08,3841.7,3841.6,11.94713691]
[1754582802766,3.33625423,3842.0,3841.9,2.60287878]
[1754582802941,3.33625423,3842.0,3841.9,22.17250329]
[1754582803340,3.33625423,3842.0,3841.9,25.30290329]
[1754582804063,3.33625423,3842.0,3841.9,7.43554178]
[1754582804369,4.26295423,3842.0,3841.7,2.60301105]
[1754582804668,3.33625423,3842.0,3841.9,0.1304]
[1754582804832,2.60295482,3841.8,3840.9,0.001]
[1754582805030,1.4767,3841.9,3840.9,0.001]
[1754582805263,1.4767,3841.9,3841.0,2.60348867]
[1754582805264,0.9267,3841.7,3841.0,2.60348867]
[1754582805440,2.6030188,3841.7,3841.0,2.60348867]
[1754582805644,0.9267,3841.6,3840.9,0.001]
[1754582805840,0.9267,3841.6,3841.1,2.60341786]
[1754582806046,0.9267,3841.5,3840.9,0.001]
[1754582806241,0.9267,3841.5,3841.0,2.6034287]
[1754582806457,2.60302085,3841.7,3841.0,2.6034287]
[1754582806657,0.9267,3841.4,3841.0,2.6034287]
[1754582806854,0.4506,3841.3,3841.0,2.6034287]
[1754582807058,0.9267,3841.2,3840.9,0.001]
[1754582807247,2.60348867,3841.0,3840.9,0.001]
[1754582807458,0.55,3841.0,3840.9,0.001]
[1754582807633,2.60348867,3841.0,3840.9,0.001]
[1754582807837,3.53018867,3841.0,3840.9,0.001]
[1754582808165,4.17884914,3841.0,3840.9,0.001]
[1754582808872,18.67884914,3841.0,3840.9,0.001]
[1754582809060,19.22884914,3841.0,3840.9,0.001]
[1754582810462,19.78774534,3841.0,3840.9,0.001]
[1754582811948,24.02331405,3841.0,3840.9,0.001]
[1754582812467,23.78074534,3841.0,3840.9,0.001]
[1754582813271,22.02318867,3841.0,3840.9,0.001]
[1754582813437,18.493,3841.0,3840.9,0.001]
[1754582813636,18.9691,3841.0,3840.9,0.001]
[1754582814037,19.4197,3841.0,3840.9,0.001]
[1754582814574,18.9691,3841.0,3840.9,0.001]
[1754582814896,19.0995,3841.0,3840.9,0.001]
[1754582815050,19.5501,3841.0,3840.9,0.001]
[1754582815674,19.0995,3841.0,3840.9,0.001]
[1754582816177,19.5501,3841.0,3840.9,0.001]
[1754582816959,19.0995,3841.0,3840.9,0.001]
[1754582818216,19.5741,3841.0,3840.9,0.001]
[1754582818421,21.79184609,3841.0,3840.9,0.001]
[1754582820491,19.5741,3841.0,3840.9,0.001]
[1754582820691,19.0995,3841.0,3840.9,0.001]
[1754582821105,14.6304,3841.0,3840.9,0.001]
[1754582821318,3.989,3841.0,3840.9,2.60455645]
[1754582821500,0.55873275,3841.5,3840.9,1.51835927]
[1754582821691,3.989,3841.4,3840.9,0.895]
[1754582821897,0.55873275,3841.9,3841.7,2.60296117]
[1754582822088,3.33625423,3842.0,3841.9,2.60287878]
[1754582822295,7.32625423,3842.0,3841.9,2.60287878]
[1754582822532,7.88598698,3842.0,3841.9,3.03337878]
[1754582822713,7.88598698,3842.0,3841.9,2.73327878]
[1754582823440,7.88598698,3842.0,3841.9,3.16377878]
[1754582823738,7.32725423,3842.0,3841.9,3.16377878]
[1754582823951,7.32725423,3842.0,3841.9,2.73327878]
[1754582824154,7.32725423,3842.0,3841.9,0.1304]
[1754582824647,7.32625423,3842.0,3841.9,2.73327878]
[1754582827052,7.32625423,3842.0,3841.9,0.1304]
[1754582827852,7.32625423,3842.0,3841.9,2.73327878]
[1754582828555,7.32625423,3842.0,3841.9,0.1304]
[1754582828926,7.78395423,3842.0,3841.9,0.1304]
[1754582829564,7.78395423,3842.0,3841.8,2.60294451]
[1754582829726,7.78395423,3842.0,3841.9,2.60287878]
[1754582829923,7.78395423,3842.0,3841.8,2.60292164]
[1754582831052,7.78395423,3842.0,3841.9,2.60287878]
[1754582831053,3.33625423,3842.0,3841.9,2.60287878]
[1754582831253,3.33625423,3842.0,3841.9,3.03337878]
[1754582831254,7.32325423,3842.0,3841.9,3.03337878]
[1754582831556,3.987,3842.0,3841.9,3.16377878]
[1754582831753,3.987,3842.0,3841.9,2.73327878]
[1754582831954,3.987,3842.0,3841.9,0.1304]
[1754582832123,4.4447,3842.0,3841.9,2.73327878]
[1754582832764,3.987,3842.0,3841.9,2.73327878]
[1754582833062,0.002,3842.1,3842.0,5.60281103]
[1754582833248,0.002,3842.1,3842.0,6.49681103]
[1754582833564,0.002,3843.2,3842.6,0.55]
[1754582833748,2.598676,3843.6,3843.5,2.60179523]
[1754582834062,2.598676,3843.6,3843.5,10.48979523]
[1754582834250,14.55451999,3844.4,3844.3,2.6012538]
[1754582834556,15.11337869,3844.4,3844.3,2.6012538]
[1754582834720,15.57107869,3844.4,3844.3,2.6012538]
[1754582835155,15.57107869,3844.4,3844.2,2.60130002]
[1754582835356,4.5518587,3844.3,3844.2,2.60130002]
[1754582835859,4.5518587,3844.3,3844.2,5.60130002]
[1754582836037,5.0095587,3844.3,3844.0,2.60144455]
[1754582836453,0.4577,3844.2,3843.5,2.34662567]
[1754582836648,3.993,3844.1,3844.0,5.60145279]
[1754582837744,0.05451999,3844.4,3844.3,2.6012538]
[1754582837979,0.05451999,3844.4,3844.3,3.0317538]
[1754582838677,0.05451999,3844.4,3844.3,6.4952538]
[1754582839943,0.05451999,3844.4,3844.3,6.0317538]
[1754582840658,0.05451999,3844.4,3844.3,6.4952538]
[1754582840848,0.51221999,3844.4,3844.3,5.6012538]
[1754582841246,0.05451999,3844.4,3844.3,5.6012538]
[1754582841861,0.05451999,3844.4,3844.3,7.75746637]
[1754582843352,0.05451999,3844.4,3844.3,7.88786637]